[Event "Titled Tuesday Blitz October 25 Late 2022"]
[White "Goroshkov, Maksym"]
[Black "Haszon, David"]
[WhiteFideId "14142716"]
[BlackFideId "733610"]
[WhiteElo "2257"]
[BlackElo "2211"]
[Result "1-0"]
[Round "11"]
[TimeControl "180+1"]
[Date "2022.10.26"]
[WhiteClock "0:00:52"]
[BlackClock "0:00:07"]

1. e4 {[%clk 0:02:59]}  e5 {[%clk 0:02:59]} 2. d4 {[%clk 0:03:00]}  exd4 {[%clk 0:02:59]} 3. c3 {[%clk 0:03:01]}  dxc3 {[%clk 0:02:59]} 4. Bc4 {[%clk 0:03:01]}  cxb2 {[%clk 0:02:55]} 5. Bxb2 {[%clk 0:03:02]}  d5 {[%clk 0:02:55]} 6. Bxd5 {[%clk 0:03:02]}  Nf6 {[%clk 0:02:54]} 7. Nf3 {[%clk 0:02:52]}  Bb4+ {[%clk 0:02:48]} 8. Kf1 {[%clk 0:02:51]}  Nxd5 {[%clk 0:02:34]} 9. exd5 {[%clk 0:02:41]}  Bf8 {[%clk 0:01:58]} 10. Nc3 {[%clk 0:02:36]}  f6 {[%clk 0:01:55]} 11. Nh4 {[%clk 0:02:29]}  Qd7 {[%clk 0:01:33]} 12. Qh5+ {[%clk 0:02:13]}  Qf7 {[%clk 0:01:33]} 13. Re1+ {[%clk 0:02:13]}  Be7 {[%clk 0:01:33]} 14. Qe2 {[%clk 0:02:09]}  Kd8 {[%clk 0:01:10]} 15. Nf3 {[%clk 0:01:58]}  Re8 {[%clk 0:01:07]} 16. Nd4 {[%clk 0:01:56]}  Bd6 {[%clk 0:01:04]} 17. Ne6+ {[%clk 0:01:53]}  Bxe6 {[%clk 0:01:05]} 18. dxe6 {[%clk 0:01:54]}  Qg6 {[%clk 0:00:56]} 19. Qb5 {[%clk 0:01:52]}  Kc8 {[%clk 0:00:52]} 20. h4 {[%clk 0:01:47]}  Nc6 {[%clk 0:00:45]} 21. h5 {[%clk 0:01:43]}  Qg5 {[%clk 0:00:27]} 22. Qxg5 {[%clk 0:01:32]}  fxg5 {[%clk 0:00:28]} 23. Nd5 {[%clk 0:01:32]}  Nd8 {[%clk 0:00:22]} 24. e7 {[%clk 0:01:23]}  Nc6 {[%clk 0:00:22]} 25. h6 {[%clk 0:01:16]}  Kd7 {[%clk 0:00:16]} 26. hxg7 {[%clk 0:01:12]}  Bxe7 {[%clk 0:00:16]} 27. Rxh7 {[%clk 0:01:10]}  Rg8 {[%clk 0:00:15]} 28. Rh8 {[%clk 0:01:08]}  Rae8 {[%clk 0:00:10]} 29. Bf6 {[%clk 0:00:53]}  Bd8 {[%clk 0:00:08]} 30. Rxe8 {[%clk 0:00:52]}  Rxe8 {[%clk 0:00:07]} 31. Rxe8 {[%clk 0:00:52]}  Kxe8 {[%clk 0:00:07]} 32. g8=Q+ {[%clk 0:00:52]} 1-0


[Site "https://www.chess.com"]

[Event "Titled Tuesday Blitz October 25 Late 2022"]
[White "Gritsenko, Nikolai"]
[Black "Sivakumar, Shaaketh"]
[WhiteFideId "14112493"]
[BlackFideId "30940176"]
[WhiteElo "2389"]
[BlackElo "2174"]
[Result "1-0"]
[Round "11"]
[TimeControl "180+1"]
[Date "2022.10.26"]
[WhiteClock "0:00:13"]
[BlackClock "0:00:30"]

1. d4 {[%clk 0:03:00]}  d5 {[%clk 0:02:57]} 2. Nf3 {[%clk 0:02:59]}  Nf6 {[%clk 0:02:54]} 3. Bf4 {[%clk 0:02:58]}  c5 {[%clk 0:02:53]} 4. e3 {[%clk 0:02:57]}  Nc6 {[%clk 0:02:52]} 5. c3 {[%clk 0:02:56]}  cxd4 {[%clk 0:02:51]} 6. exd4 {[%clk 0:02:55]}  Bf5 {[%clk 0:02:50]} 7. Bd3 {[%clk 0:02:49]}  Bxd3 {[%clk 0:02:49]} 8. Qxd3 {[%clk 0:02:49]}  e6 {[%clk 0:02:49]} 9. Nbd2 {[%clk 0:02:39]}  Bd6 {[%clk 0:02:43]} 10. Bg5 {[%clk 0:02:39]}  O-O {[%clk 0:02:43]} 11. O-O {[%clk 0:02:37]}  h6 {[%clk 0:02:42]} 12. Bh4 {[%clk 0:02:37]}  Be7 {[%clk 0:02:42]} 13. Rae1 {[%clk 0:02:32]}  Nh5 {[%clk 0:02:41]} 14. Bxe7 {[%clk 0:02:21]}  Qxe7 {[%clk 0:02:42]} 15. g3 {[%clk 0:02:13]}  Qd6 {[%clk 0:02:39]} 16. Nh4 {[%clk 0:02:06]}  Nf6 {[%clk 0:02:35]} 17. f4 {[%clk 0:02:03]}  b5 {[%clk 0:02:30]} 18. Nhf3 {[%clk 0:01:44]}  b4 {[%clk 0:02:26]} 19. Ne5 {[%clk 0:01:42]}  bxc3 {[%clk 0:02:23]} 20. bxc3 {[%clk 0:01:41]}  Ne7 {[%clk 0:02:21]} 21. g4 {[%clk 0:01:38]}  Rac8 {[%clk 0:02:10]} 22. g5 {[%clk 0:01:20]}  Nh7 {[%clk 0:02:00]} 23. gxh6 {[%clk 0:01:11]}  gxh6 {[%clk 0:02:00]} 24. f5 {[%clk 0:00:52]}  Nxf5 {[%clk 0:01:55]} 25. Rxf5 {[%clk 0:00:50]}  exf5 {[%clk 0:01:54]} 26. Qg3+ {[%clk 0:00:50]}  Ng5 {[%clk 0:01:48]} 27. h4 {[%clk 0:00:49]}  f4 {[%clk 0:01:36]} 28. Qg2 {[%clk 0:00:37]}  f6 {[%clk 0:01:23]} 29. hxg5 {[%clk 0:00:32]}  hxg5 {[%clk 0:01:19]} 30. Ndf3 {[%clk 0:00:31]}  Rc7 {[%clk 0:01:13]} 31. Ng4 {[%clk 0:00:27]}  Kg7 {[%clk 0:01:07]} 32. Nf2 {[%clk 0:00:19]}  Re7 {[%clk 0:01:03]} 33. Rb1 {[%clk 0:00:17]}  Rb8 {[%clk 0:00:58]} 34. Rf1 {[%clk 0:00:16]}  Qd7 {[%clk 0:00:52]} 35. Ng4 {[%clk 0:00:15]}  Rbe8 {[%clk 0:00:46]} 36. Nxf6 {[%clk 0:00:15]}  Kxf6 {[%clk 0:00:40]} 37. Qxg5+ {[%clk 0:00:14]}  Ke6 {[%clk 0:00:30]} 38. Qg6# {[%clk 0:00:13]} 1-0


[Site "https://www.chess.com"]

[Event "Titled Tuesday Blitz October 25 Late 2022"]
[White "Ibarra Jerez, Jose Carlos"]
[Black "Timmermans, Mark"]
[WhiteFideId "2226332"]
[BlackFideId "1026399"]
[WhiteElo "2627"]
[BlackElo "2460"]
[Result "1-0"]
[Round "11"]
[TimeControl "180+1"]
[Date "2022.10.26"]
[WhiteClock "0:01:09"]
[BlackClock "0:00:49"]

1. Nf3 {[%clk 0:03:00]}  Nf6 {[%clk 0:02:59]} 2. g3 {[%clk 0:03:01]}  e6 {[%clk 0:02:59]} 3. Bg2 {[%clk 0:03:01]}  d5 {[%clk 0:03:00]} 4. O-O {[%clk 0:03:01]}  Be7 {[%clk 0:03:01]} 5. c4 {[%clk 0:03:01]}  O-O {[%clk 0:03:02]} 6. b3 {[%clk 0:03:02]}  c5 {[%clk 0:03:02]} 7. cxd5 {[%clk 0:03:01]}  Nxd5 {[%clk 0:03:03]} 8. Bb2 {[%clk 0:03:01]}  b6 {[%clk 0:03:02]} 9. d4 {[%clk 0:03:01]}  cxd4 {[%clk 0:03:01]} 10. Nxd4 {[%clk 0:03:00]}  Bb7 {[%clk 0:03:00]} 11. e4 {[%clk 0:02:57]}  Nb4 {[%clk 0:02:54]} 12. Nc3 {[%clk 0:02:46]}  N8c6 {[%clk 0:02:51]} 13. Nxc6 {[%clk 0:02:41]}  Nxc6 {[%clk 0:02:42]} 14. e5 {[%clk 0:02:27]}  Qxd1 {[%clk 0:02:29]} 15. Rfxd1 {[%clk 0:02:27]}  Rfd8 {[%clk 0:02:30]} 16. Nb5 {[%clk 0:02:23]}  a6 {[%clk 0:02:19]} 17. Nd6 {[%clk 0:02:19]}  Bxd6 {[%clk 0:02:17]} 18. exd6 {[%clk 0:02:18]}  Na5 {[%clk 0:02:10]} 19. Rac1 {[%clk 0:02:13]}  Rac8 {[%clk 0:01:59]} 20. Rxc8 {[%clk 0:01:43]}  Bxc8 {[%clk 0:01:59]} 21. Bc3 {[%clk 0:01:20]}  Bd7 {[%clk 0:01:03]} 22. Bd4 {[%clk 0:01:15]}  Rb8 {[%clk 0:00:48]} 23. Rc1 {[%clk 0:01:15]}  Kf8 {[%clk 0:00:48]} 24. Rc7 {[%clk 0:01:11]}  Ke8 {[%clk 0:00:49]} 25. b4 {[%clk 0:01:09]} 1-0


[Site "https://www.chess.com"]

[Event "Titled Tuesday Blitz October 25 Late 2022"]
[White "Ismayil, Malak"]
[Black "Toncheva, Nadya"]
[WhiteFideId "13412604"]
[BlackFideId "2924056"]
[WhiteElo "1879"]
[BlackElo "2101"]
[Result "0-1"]
[Round "11"]
[TimeControl "180+1"]
[Date "2022.10.26"]
[WhiteClock "0:00:03"]
[BlackClock "0:00:07"]

1. e4 {[%clk 0:03:00]}  c5 {[%clk 0:03:00]} 2. Nf3 {[%clk 0:03:00]}  e6 {[%clk 0:03:00]} 3. b3 {[%clk 0:02:59]}  Nc6 {[%clk 0:02:53]} 4. Bb2 {[%clk 0:02:59]}  Nf6 {[%clk 0:02:52]} 5. d3 {[%clk 0:02:57]}  Be7 {[%clk 0:02:53]} 6. Nbd2 {[%clk 0:02:57]}  O-O {[%clk 0:02:53]} 7. g3 {[%clk 0:02:56]}  d5 {[%clk 0:02:52]} 8. Bg2 {[%clk 0:02:55]}  b6 {[%clk 0:02:49]} 9. O-O {[%clk 0:02:55]}  Bb7 {[%clk 0:02:50]} 10. Qe2 {[%clk 0:02:54]}  Qc7 {[%clk 0:02:39]} 11. a3 {[%clk 0:02:38]}  Rad8 {[%clk 0:02:34]} 12. Rfe1 {[%clk 0:02:36]}  Rfe8 {[%clk 0:02:34]} 13. Rad1 {[%clk 0:02:35]}  Nd7 {[%clk 0:02:27]} 14. h4 {[%clk 0:02:24]}  Nf8 {[%clk 0:02:18]} 15. e5 {[%clk 0:02:15]}  f6 {[%clk 0:01:44]} 16. exf6 {[%clk 0:02:12]}  Bxf6 {[%clk 0:01:44]} 17. Bxf6 {[%clk 0:02:12]}  gxf6 {[%clk 0:01:45]} 18. Qe3 {[%clk 0:02:03]}  Qg7 {[%clk 0:01:42]} 19. c4 {[%clk 0:01:57]}  d4 {[%clk 0:01:35]} 20. Qe2 {[%clk 0:01:54]}  Ng6 {[%clk 0:01:30]} 21. Ne4 {[%clk 0:01:52]}  Kh8 {[%clk 0:01:21]} 22. Qd2 {[%clk 0:01:52]}  Rg8 {[%clk 0:01:10]} 23. h5 {[%clk 0:01:30]}  Nge5 {[%clk 0:00:54]} 24. Nxe5 {[%clk 0:01:29]}  Nxe5 {[%clk 0:00:50]} 25. Qf4 {[%clk 0:01:27]}  Ng4 {[%clk 0:00:35]} 26. Bf3 {[%clk 0:01:13]}  Ne5 {[%clk 0:00:23]} 27. Bg2 {[%clk 0:01:07]}  Ng4 {[%clk 0:00:23]} 28. Bh3 {[%clk 0:00:35]}  f5 {[%clk 0:00:16]} 29. Nd2 {[%clk 0:00:29]}  e5 {[%clk 0:00:14]} 30. Qxf5 {[%clk 0:00:28]}  Bc8 {[%clk 0:00:13]} 31. Qe4 {[%clk 0:00:13]}  Nxf2 {[%clk 0:00:13]} 32. Kxf2 {[%clk 0:00:11]}  Bxh3 {[%clk 0:00:13]} 33. Rg1 {[%clk 0:00:03]}  Rgf8+ {[%clk 0:00:11]} 34. Ke1 {[%clk 0:00:03]}  Bg4 {[%clk 0:00:09]} 35. Rc1 {[%clk 0:00:02]}  Rf7 {[%clk 0:00:07]} 36. Nf1 {[%clk 0:00:02]}  Rdf8 {[%clk 0:00:07]} 37. Kd2 {[%clk 0:00:03]}  Rf2+ {[%clk 0:00:06]} 38. Ke1 {[%clk 0:00:03]}  Re2+ {[%clk 0:00:06]} 39. Qxe2 {[%clk 0:00:02]}  Bxe2 {[%clk 0:00:07]} 40. Kxe2 {[%clk 0:00:03]}  Qg4+ {[%clk 0:00:08]} 41. Kd2 {[%clk 0:00:03]}  Rf2+ {[%clk 0:00:07]} 0-1


[Site "https://www.chess.com"]

[Event "Titled Tuesday Blitz October 25 Late 2022"]
[White "Jaferian, Koosha"]
[Black "Baskakov, Egor"]
[WhiteFideId "12507440"]
[BlackFideId "24197866"]
[WhiteElo "2127"]
[BlackElo "2211"]
[Result "0-1"]
[Round "11"]
[TimeControl "180+1"]
[Date "2022.10.26"]
[WhiteClock "0:00:13"]
[BlackClock "0:00:18"]

1. e4 {[%clk 0:03:00]}  c5 {[%clk 0:02:59]} 2. Nc3 {[%clk 0:03:00]}  Nc6 {[%clk 0:02:59]} 3. Bb5 {[%clk 0:03:00]}  g6 {[%clk 0:02:59]} 4. Bxc6 {[%clk 0:03:00]}  dxc6 {[%clk 0:03:00]} 5. f4 {[%clk 0:03:00]}  Bg7 {[%clk 0:03:00]} 6. d3 {[%clk 0:03:00]}  e5 {[%clk 0:03:00]} 7. Nf3 {[%clk 0:02:59]}  exf4 {[%clk 0:02:59]} 8. Bxf4 {[%clk 0:03:00]}  h6 {[%clk 0:02:59]} 9. O-O {[%clk 0:03:00]}  Be6 {[%clk 0:02:59]} 10. Qd2 {[%clk 0:02:59]}  Ne7 {[%clk 0:02:58]} 11. Be5 {[%clk 0:02:53]}  Bxe5 {[%clk 0:02:57]} 12. Nxe5 {[%clk 0:02:54]}  Qd4+ {[%clk 0:02:57]} 13. Kh1 {[%clk 0:02:41]}  Qxe5 {[%clk 0:02:57]} 14. Rae1 {[%clk 0:02:41]}  h5 {[%clk 0:02:55]} 15. a4 {[%clk 0:02:41]}  Rd8 {[%clk 0:02:54]} 16. Qe3 {[%clk 0:02:40]}  b6 {[%clk 0:02:54]} 17. a5 {[%clk 0:02:39]}  h4 {[%clk 0:02:53]} 18. axb6 {[%clk 0:02:38]}  axb6 {[%clk 0:02:54]} 19. h3 {[%clk 0:02:38]}  b5 {[%clk 0:02:53]} 20. Rb1 {[%clk 0:02:35]}  c4 {[%clk 0:02:52]} 21. Rfd1 {[%clk 0:02:31]}  cxd3 {[%clk 0:02:47]} 22. cxd3 {[%clk 0:02:31]}  Qd4 {[%clk 0:02:44]} 23. Qg5 {[%clk 0:02:28]}  Rh5 {[%clk 0:02:42]} 24. Qd2 {[%clk 0:02:26]}  Qe5 {[%clk 0:02:40]} 25. Ne2 {[%clk 0:02:26]}  Rh8 {[%clk 0:02:22]} 26. Qe3 {[%clk 0:02:23]}  c5 {[%clk 0:02:20]} 27. Nf4 {[%clk 0:02:21]}  Qd4 {[%clk 0:02:16]} 28. Qf3 {[%clk 0:02:19]}  Bb3 {[%clk 0:02:12]} 29. Rf1 {[%clk 0:02:16]}  g5 {[%clk 0:02:10]} 30. Nh5 {[%clk 0:02:14]}  Qxd3 {[%clk 0:02:04]} 31. Nf6+ {[%clk 0:01:56]}  Kf8 {[%clk 0:02:02]} 32. Qg4 {[%clk 0:01:55]}  Qg3 {[%clk 0:01:59]} 33. Qe2 {[%clk 0:01:17]}  Bc4 {[%clk 0:01:56]} 34. Qc2 {[%clk 0:01:17]}  Bxf1 {[%clk 0:01:51]} 35. Rxf1 {[%clk 0:01:18]}  Qd3 {[%clk 0:01:50]} 36. Qf2 {[%clk 0:01:17]}  Qc4 {[%clk 0:01:36]} 37. Nd5 {[%clk 0:01:12]}  Rh7 {[%clk 0:01:32]} 38. Qf6 {[%clk 0:01:08]}  Qxe4 {[%clk 0:01:18]} 39. Nc7 {[%clk 0:00:53]}  Rd2 {[%clk 0:01:12]} 40. Qxg5 {[%clk 0:00:38]}  Rd8 {[%clk 0:00:42]} 41. Qf6 {[%clk 0:00:26]}  Kg8 {[%clk 0:00:38]} 42. Rf4 {[%clk 0:00:17]}  Qe1+ {[%clk 0:00:36]} 43. Rf1 {[%clk 0:00:17]}  Qe3 {[%clk 0:00:30]} 44. Rf3 {[%clk 0:00:15]}  Rd1+ {[%clk 0:00:28]} 45. Rf1 {[%clk 0:00:12]}  Rxf1+ {[%clk 0:00:28]} 46. Qxf1 {[%clk 0:00:13]}  Rg7 {[%clk 0:00:27]} 47. Ne8 {[%clk 0:00:12]}  Rg6 {[%clk 0:00:26]} 48. Nf6+ {[%clk 0:00:13]}  Rxf6 {[%clk 0:00:24]} 49. Qxf6 {[%clk 0:00:14]}  Ng6 {[%clk 0:00:24]} 50. Qd8+ {[%clk 0:00:11]}  Kg7 {[%clk 0:00:24]} 51. Kh2 {[%clk 0:00:09]}  Qe5+ {[%clk 0:00:23]} 52. Kh1 {[%clk 0:00:09]}  Qxb2 {[%clk 0:00:24]} 53. Qd6 {[%clk 0:00:09]}  Qa1+ {[%clk 0:00:22]} 54. Kh2 {[%clk 0:00:09]}  Qe5+ {[%clk 0:00:23]} 55. Qxe5+ {[%clk 0:00:10]}  Nxe5 {[%clk 0:00:24]} 56. g3 {[%clk 0:00:10]}  hxg3+ {[%clk 0:00:24]} 57. Kxg3 {[%clk 0:00:11]}  b4 {[%clk 0:00:25]} 58. Kf4 {[%clk 0:00:12]}  f6 {[%clk 0:00:25]} 59. Ke4 {[%clk 0:00:12]}  Kh6 {[%clk 0:00:25]} 60. h4 {[%clk 0:00:12]}  Kh5 {[%clk 0:00:25]} 61. Kd5 {[%clk 0:00:13]}  c4 {[%clk 0:00:24]} 62. Kc5 {[%clk 0:00:14]}  b3 {[%clk 0:00:24]} 63. Kb4 {[%clk 0:00:15]}  b2 {[%clk 0:00:24]} 64. Kc3 {[%clk 0:00:16]}  b1=Q {[%clk 0:00:23]} 65. Kd4 {[%clk 0:00:17]}  Qd3+ {[%clk 0:00:24]} 66. Kc5 {[%clk 0:00:17]}  Kxh4 {[%clk 0:00:24]} 67. Kb4 {[%clk 0:00:17]}  c3 {[%clk 0:00:24]} 68. Ka3 {[%clk 0:00:18]}  c2+ {[%clk 0:00:24]} 69. Kb2 {[%clk 0:00:19]}  Qd1 {[%clk 0:00:23]} 70. Ka2 {[%clk 0:00:18]}  Kh5 {[%clk 0:00:19]} 71. Kb3 {[%clk 0:00:14]}  Qb1+ {[%clk 0:00:19]} 72. Ka3 {[%clk 0:00:13]}  c1=Q+ {[%clk 0:00:19]} 73. Ka4 {[%clk 0:00:14]}  Qc6+ {[%clk 0:00:18]} 74. Ka5 {[%clk 0:00:13]}  Nc4# {[%clk 0:00:18]} 0-1


[Site "https://www.chess.com"]

[Event "Titled Tuesday Blitz October 25 Late 2022"]
[White "Kirillov, Dmitry"]
[Black "Machidon, Cristi"]
[WhiteFideId "34180572"]
[BlackFideId "13904590"]
[WhiteElo "2095"]
[BlackElo "2312"]
[Result "1-0"]
[Round "11"]
[TimeControl "180+1"]
[Date "2022.10.26"]
[WhiteClock "0:02:55"]
[BlackClock "0:02:42"]

1. e4 {[%clk 0:02:59]}  c6 {[%clk 0:02:59]} 2. d4 {[%clk 0:02:59]}  d5 {[%clk 0:03:00]} 3. Nc3 {[%clk 0:03:00]}  dxe4 {[%clk 0:03:00]} 4. Nxe4 {[%clk 0:03:01]}  Nf6 {[%clk 0:03:00]} 5. Nxf6+ {[%clk 0:03:01]}  exf6 {[%clk 0:03:01]} 6. c3 {[%clk 0:03:02]}  Bd6 {[%clk 0:03:01]} 7. Bd3 {[%clk 0:03:02]}  O-O {[%clk 0:03:02]} 8. Qc2 {[%clk 0:03:03]}  Re8+ {[%clk 0:03:02]} 9. Ne2 {[%clk 0:03:03]}  h5 {[%clk 0:03:03]} 10. Be3 {[%clk 0:03:04]}  Nd7 {[%clk 0:03:02]} 11. O-O-O {[%clk 0:03:04]}  Nf8 {[%clk 0:03:02]} 12. Kb1 {[%clk 0:03:05]}  Be6 {[%clk 0:02:52]} 13. c4 {[%clk 0:03:05]}  b5 {[%clk 0:02:52]} 14. d5 {[%clk 0:02:57]}  c5 {[%clk 0:02:42]} 15. dxe6 {[%clk 0:02:55]} 1-0


[Site "https://www.chess.com"]

[Event "Titled Tuesday Blitz October 25 Late 2022"]
[White "Melikhov, Evgeny V."]
[Black "Kabanova, Ekaterina"]
[WhiteFideId "4122046"]
[BlackFideId "24112917"]
[WhiteElo "2169"]
[BlackElo "2141"]
[Result "0-1"]
[Round "11"]
[TimeControl "180+1"]
[Date "2022.10.26"]
[WhiteClock "0:00:12"]
[BlackClock "0:00:40"]

1. d4 {[%clk 0:03:00]}  c5 {[%clk 0:03:00]} 2. d5 {[%clk 0:03:00]}  e5 {[%clk 0:03:00]} 3. e4 {[%clk 0:02:58]}  a6 {[%clk 0:03:00]} 4. a4 {[%clk 0:02:57]}  d6 {[%clk 0:03:00]} 5. Nc3 {[%clk 0:02:57]}  Ne7 {[%clk 0:03:01]} 6. Bd3 {[%clk 0:02:56]}  Ng6 {[%clk 0:03:02]} 7. Nce2 {[%clk 0:02:39]}  Be7 {[%clk 0:03:00]} 8. h3 {[%clk 0:02:37]}  Bg5 {[%clk 0:02:59]} 9. Nf3 {[%clk 0:02:34]}  Bxc1 {[%clk 0:02:57]} 10. Qxc1 {[%clk 0:02:35]}  O-O {[%clk 0:02:58]} 11. O-O {[%clk 0:02:33]}  f5 {[%clk 0:02:58]} 12. exf5 {[%clk 0:02:32]}  Bxf5 {[%clk 0:02:58]} 13. Bxf5 {[%clk 0:02:32]}  Rxf5 {[%clk 0:02:58]} 14. Ng3 {[%clk 0:02:31]}  Rf4 {[%clk 0:02:58]} 15. Qd2 {[%clk 0:01:53]}  Nd7 {[%clk 0:02:57]} 16. Rfe1 {[%clk 0:01:50]}  Qe7 {[%clk 0:02:39]} 17. Ne4 {[%clk 0:01:46]}  h6 {[%clk 0:02:28]} 18. a5 {[%clk 0:01:33]}  Raf8 {[%clk 0:02:28]} 19. Ra3 {[%clk 0:01:31]}  Nf6 {[%clk 0:02:24]} 20. Rae3 {[%clk 0:01:19]}  Nxe4 {[%clk 0:02:09]} 21. Rxe4 {[%clk 0:01:18]}  Rxf3 {[%clk 0:02:02]} 22. gxf3 {[%clk 0:01:18]}  Rxf3 {[%clk 0:02:02]} 23. Rg4 {[%clk 0:01:09]}  Nf4 {[%clk 0:01:52]} 24. Rxf4 {[%clk 0:01:03]}  Qg5+ {[%clk 0:01:52]} 25. Kh2 {[%clk 0:01:03]}  Rxf4 {[%clk 0:01:52]} 26. Rg1 {[%clk 0:00:57]}  Qf5 {[%clk 0:01:34]} 27. Rg2 {[%clk 0:00:56]}  Rf3 {[%clk 0:01:34]} 28. Qxh6 {[%clk 0:00:49]}  Qf4+ {[%clk 0:01:14]} 29. Qxf4 {[%clk 0:00:48]}  Rxf4 {[%clk 0:01:15]} 30. c3 {[%clk 0:00:46]}  Kf7 {[%clk 0:01:11]} 31. Kg3 {[%clk 0:00:28]}  Ra4 {[%clk 0:01:11]} 32. Kf3 {[%clk 0:00:26]}  Rxa5 {[%clk 0:01:11]} 33. Ke3 {[%clk 0:00:26]}  c4 {[%clk 0:01:04]} 34. Ke4 {[%clk 0:00:25]}  Ra1 {[%clk 0:00:58]} 35. f4 {[%clk 0:00:17]}  Re1+ {[%clk 0:00:56]} 36. Kf5 {[%clk 0:00:15]}  Rf1 {[%clk 0:00:55]} 37. Rg4 {[%clk 0:00:14]}  Rxf4+ {[%clk 0:00:48]} 38. Rxf4 {[%clk 0:00:15]}  exf4 {[%clk 0:00:48]} 39. Kxf4 {[%clk 0:00:15]}  Kf6 {[%clk 0:00:47]} 40. h4 {[%clk 0:00:15]}  b5 {[%clk 0:00:41]} 41. h5 {[%clk 0:00:14]}  a5 {[%clk 0:00:40]} 42. Kg4 {[%clk 0:00:11]}  b4 {[%clk 0:00:40]} 43. cxb4 {[%clk 0:00:10]}  axb4 {[%clk 0:00:38]} 44. Kf4 {[%clk 0:00:10]}  c3 {[%clk 0:00:38]} 45. bxc3 {[%clk 0:00:10]}  bxc3 {[%clk 0:00:39]} 46. Ke3 {[%clk 0:00:10]}  Kg5 {[%clk 0:00:39]} 47. Kd3 {[%clk 0:00:10]}  Kxh5 {[%clk 0:00:39]} 48. Kxc3 {[%clk 0:00:10]}  Kg5 {[%clk 0:00:39]} 49. Kb4 {[%clk 0:00:11]}  Kf5 {[%clk 0:00:39]} 50. Kb5 {[%clk 0:00:11]}  Ke5 {[%clk 0:00:39]} 51. Kc6 {[%clk 0:00:12]}  g5 {[%clk 0:00:40]} 0-1


[Site "https://www.chess.com"]

[Event "Titled Tuesday Blitz October 25 Late 2022"]
[White "Mickiewicz, Piotr"]
[Black "Roque Sola, Gisela"]
[WhiteFideId "1114891"]
[BlackFideId "5120241"]
[WhiteElo "2246"]
[BlackElo "1961"]
[Result "1-0"]
[Round "11"]
[TimeControl "180+1"]
[Date "2022.10.26"]
[WhiteClock "0:02:12"]
[BlackClock "0:01:45"]

1. Nf3 {[%clk 0:03:00]}  Nf6 {[%clk 0:02:59]} 2. b3 {[%clk 0:03:01]}  g6 {[%clk 0:02:58]} 3. Bb2 {[%clk 0:03:02]}  Bg7 {[%clk 0:02:59]} 4. e3 {[%clk 0:03:03]}  O-O {[%clk 0:02:58]} 5. c4 {[%clk 0:03:02]}  c5 {[%clk 0:02:57]} 6. Be2 {[%clk 0:03:01]}  Nc6 {[%clk 0:02:55]} 7. O-O {[%clk 0:03:01]}  a6 {[%clk 0:02:52]} 8. a3 {[%clk 0:03:00]}  Rb8 {[%clk 0:02:49]} 9. Qc2 {[%clk 0:03:00]}  d6 {[%clk 0:02:48]} 10. d3 {[%clk 0:02:59]}  b5 {[%clk 0:02:47]} 11. Nbd2 {[%clk 0:02:58]}  Bb7 {[%clk 0:02:41]} 12. Rfe1 {[%clk 0:02:35]}  e5 {[%clk 0:02:41]} 13. Ne4 {[%clk 0:02:32]}  Nxe4 {[%clk 0:02:40]} 14. dxe4 {[%clk 0:02:31]}  Bc8 {[%clk 0:02:07]} 15. Nd2 {[%clk 0:02:30]}  f5 {[%clk 0:02:05]} 16. exf5 {[%clk 0:02:21]}  Bxf5 {[%clk 0:02:01]} 17. Bd3 {[%clk 0:02:18]}  Bxd3 {[%clk 0:02:00]} 18. Qxd3 {[%clk 0:02:17]}  e4 {[%clk 0:01:47]} 19. Qd5+ {[%clk 0:02:14]}  Kh8 {[%clk 0:01:44]} 20. Bxg7+ {[%clk 0:02:13]}  Kxg7 {[%clk 0:01:45]} 21. Qxc6 {[%clk 0:02:12]} 1-0


[Site "https://www.chess.com"]

[Event "Titled Tuesday Blitz October 25 Late 2022"]
[White "Miszler, Levente"]
[Black "Sokolovsky, Yahli"]
[WhiteFideId "763276"]
[BlackFideId "2820242"]
[WhiteElo "2176"]
[BlackElo "2316"]
[Result "0-1"]
[Round "11"]
[TimeControl "180+1"]
[Date "2022.10.26"]
[WhiteClock "0:01:23"]
[BlackClock "0:00:55"]

1. Nf3 {[%clk 0:03:00]}  g6 {[%clk 0:02:58]} 2. c4 {[%clk 0:03:00]}  Bg7 {[%clk 0:02:58]} 3. g3 {[%clk 0:03:01]}  e5 {[%clk 0:02:59]} 4. Nc3 {[%clk 0:02:59]}  f5 {[%clk 0:02:58]} 5. d3 {[%clk 0:02:56]}  Nf6 {[%clk 0:02:58]} 6. Bg2 {[%clk 0:02:56]}  O-O {[%clk 0:02:57]} 7. Nxe5 {[%clk 0:02:53]}  Re8 {[%clk 0:02:54]} 8. Nf3 {[%clk 0:02:52]}  d5 {[%clk 0:02:53]} 9. cxd5 {[%clk 0:02:49]}  Nxd5 {[%clk 0:02:54]} 10. Nxd5 {[%clk 0:02:42]}  Qxd5 {[%clk 0:02:55]} 11. O-O {[%clk 0:02:43]}  Nc6 {[%clk 0:02:53]} 12. a3 {[%clk 0:02:40]}  Qb5 {[%clk 0:02:37]} 13. Qc2 {[%clk 0:02:38]}  Be6 {[%clk 0:02:37]} 14. e3 {[%clk 0:02:26]}  Bb3 {[%clk 0:02:31]} 15. Qd2 {[%clk 0:02:23]}  Rad8 {[%clk 0:02:28]} 16. d4 {[%clk 0:02:23]}  Na5 {[%clk 0:01:53]} 17. Qb4 {[%clk 0:02:18]}  Qa6 {[%clk 0:01:47]} 18. Bd2 {[%clk 0:02:10]}  b6 {[%clk 0:01:46]} 19. Rfc1 {[%clk 0:02:02]}  Bf8 {[%clk 0:01:19]} 20. Bf1 {[%clk 0:02:02]}  Qb7 {[%clk 0:01:09]} 21. Qc3 {[%clk 0:01:45]}  Qxf3 {[%clk 0:01:08]} 22. Bg2 {[%clk 0:01:44]}  Qe2 {[%clk 0:01:09]} 23. Bf1 {[%clk 0:01:36]}  Qg4 {[%clk 0:00:59]} 24. Qxc7 {[%clk 0:01:33]}  Bd5 {[%clk 0:00:58]} 25. Bg2 {[%clk 0:01:22]}  Bxg2 {[%clk 0:00:56]} 26. Kxg2 {[%clk 0:01:23]}  Qe4+ {[%clk 0:00:56]} 27. Kg1 {[%clk 0:01:23]}  Nb3 {[%clk 0:00:55]} 0-1


[Site "https://www.chess.com"]

[Event "Titled Tuesday Blitz October 25 Late 2022"]
[White "Muhammad, Shahzeb"]
[Black "Faizrakhmanov, Ramil"]
[WhiteFideId "7804806"]
[BlackFideId "24103209"]
[WhiteElo "2411"]
[BlackElo "2421"]
[Result "0-1"]
[Round "11"]
[TimeControl "180+1"]
[Date "2022.10.26"]
[WhiteClock "0:00:01"]
[BlackClock "0:01:40"]

1. e4 {[%clk 0:03:00]}  c5 {[%clk 0:03:00]} 2. Nc3 {[%clk 0:02:59]}  e6 {[%clk 0:03:00]} 3. f4 {[%clk 0:02:59]}  a6 {[%clk 0:03:00]} 4. d4 {[%clk 0:02:58]}  cxd4 {[%clk 0:02:59]} 5. Qxd4 {[%clk 0:02:59]}  Nc6 {[%clk 0:02:59]} 6. Qf2 {[%clk 0:02:58]}  Qc7 {[%clk 0:02:59]} 7. Bd3 {[%clk 0:02:57]}  b5 {[%clk 0:03:00]} 8. a3 {[%clk 0:02:57]}  Bb7 {[%clk 0:03:00]} 9. Nf3 {[%clk 0:02:57]}  d6 {[%clk 0:02:59]} 10. Be3 {[%clk 0:02:55]}  Nf6 {[%clk 0:02:59]} 11. Bb6 {[%clk 0:02:53]}  Qc8 {[%clk 0:02:58]} 12. e5 {[%clk 0:02:50]}  dxe5 {[%clk 0:02:57]} 13. fxe5 {[%clk 0:02:50]}  Nd7 {[%clk 0:02:54]} 14. O-O-O {[%clk 0:01:35]}  b4 {[%clk 0:02:42]} 15. axb4 {[%clk 0:01:27]}  Nxb4 {[%clk 0:02:38]} 16. Bd4 {[%clk 0:01:04]}  Bc5 {[%clk 0:02:35]} 17. Ng5 {[%clk 0:00:53]}  Nxd3+ {[%clk 0:02:27]} 18. Rxd3 {[%clk 0:00:48]}  O-O {[%clk 0:02:26]} 19. Nxh7 {[%clk 0:00:24]}  Nxe5 {[%clk 0:02:25]} 20. Nf6+ {[%clk 0:00:17]}  gxf6 {[%clk 0:02:25]} 21. Qg3+ {[%clk 0:00:13]}  Ng6 {[%clk 0:02:22]} 22. Bxf6 {[%clk 0:00:11]}  Qb8 {[%clk 0:02:19]} 23. Qg5 {[%clk 0:00:01]}  Qf4+ {[%clk 0:02:01]} 24. Qxf4 {[%clk 0:00:01]}  Nxf4 {[%clk 0:02:01]} 25. Rg3+ {[%clk 0:00:01]}  Kh7 {[%clk 0:01:40]} 0-1


[Site "https://www.chess.com"]